bitfinex-derivatives/quotes_ETHF0:USTF0_20241013
["timestamp","ask_amount","ask_price","bid_price","bid_amount"]
[1728850059925,1.72717,2456.3,2456.2,0.40719]
[1728850060329,0.40719,2456.2,2456.0,1.47117103]
[1728850060623,0.40722,2456.0,2455.9,3.17809103]
[1728850061028,0.82592,2456.0,2455.9,1.72723]
[1728850061419,0.82592,2456.0,2455.8,1.06396103]
[1728850061420,0.40724,2455.9,2455.8,1.06396103]
[1728850061619,0.40726,2455.8,2455.7,1.47123103]
[1728850061925,0.40726,2455.8,2455.7,1.72727]
[1728850061926,2.12166,2455.8,2455.7,1.72727]
[1728850062226,0.80166,2455.8,2455.7,1.72727]
[1728850063423,2.12166,2455.8,2455.7,1.72727]
[1728850068441,1.7144,2455.8,2455.7,1.72727]
[1728850073934,0.3944,2455.8,2455.7,1.72727]
[1728850074141,0.3944,2455.8,2455.7,2.14267]
[1728850078042,0.3944,2455.8,2455.7,0.82267]
[1728850079437,2.12166,2455.8,2455.7,0.82267]
[1728850080448,1.7144,2455.8,2455.7,0.82267]
[1728850086853,1.32,2455.8,2455.7,0.82267]
[1728850087051,1.72724,2455.9,2455.8,0.40726]
[1728850088646,1.32,2455.9,2455.8,0.40726]
[1728850088849,4.0254,2456.0,2455.8,1.32]
[1728850089042,3.2078,2456.0,2455.9,2.13714]
[1728850089243,4.93502,2456.0,2455.9,0.81714]
[1728850090845,4.5278,2456.0,2455.9,0.81714]
[1728850093048,1.32,2456.0,2455.9,0.81714]
[1728850093257,4.5278,2456.0,2455.9,0.81714]
[1728850095257,4.93502,2456.0,2455.9,0.81714]
[1728850095452,4.5278,2456.0,2455.9,0.81714]
[1728850098255,4.5278,2456.0,2455.9,0.40724]
[1728850100955,1.32,2456.0,2455.9,0.40724]
[1728850101659,4.5278,2456.0,2455.9,0.40724]
[1728850103259,4.5278,2456.0,2455.9,2.14419082]
[1728850104150,4.5278,2456.0,2455.9,3.6895173]
[1728850105057,4.5278,2456.0,2455.9,2.62555627]
[1728850105362,4.5278,2456.0,2455.9,4.22149782]
[1728850105563,4.93502,2456.0,2455.9,2.62555627]
[1728850106163,4.93502,2456.0,2455.9,4.22149782]
[1728850106356,4.93502,2456.0,2455.9,5.03639853]
[1728850107163,4.93502,2456.0,2455.9,5.29869267]
[1728850108061,4.5278,2456.0,2455.9,5.29869267]
[1728850110263,4.5278,2456.0,2455.9,5.50241573]
[1728850110264,3.2078,2456.0,2455.9,5.50241573]
[1728850110459,1.32,2456.1,2455.9,3.49923418]
[1728850110658,1.32,2456.1,2456.0,4.64604431]
[1728850110854,1.7189,2456.2,2456.1,0.40721]
[1728850111160,1.7189,2456.2,2456.1,4.61103431]
[1728850111765,1.7189,2456.2,2456.1,5.42606284]
[1728850111959,1.7189,2456.2,2456.1,5.68838694]
[1728850112155,1.7189,2456.2,2456.1,5.42598941]
[1728850112766,1.7189,2456.2,2456.1,5.68825862]
[1728850113063,3.6144,2456.4,2456.3,0.40717]
[1728850113064,4.93496,2456.4,2456.3,0.40717]
[1728850113268,4.93496,2456.4,2456.3,1.98211034]
[1728850113658,4.93496,2456.4,2456.3,0.40717]
[1728850113867,3.2078,2456.4,2456.3,2.14603536]
[1728850114060,3.2078,2456.4,2456.3,4.0816295]
[1728850114266,3.2078,2456.4,2456.3,4.61448715]
[1728850115169,3.2078,2456.4,2456.3,4.614483]
[1728850115363,3.2078,2456.4,2456.3,3.01591006]
[1728850116062,1.72713,2456.6,2456.5,0.40714]
[1728850116668,1.32,2456.6,2456.5,0.40714]
[1728850116867,1.72712,2456.6,2456.5,0.40714]
[1728850136088,1.32,2456.6,2456.5,0.40714]
[1728850138287,1.72712,2456.6,2456.5,0.40714]
[1728850140272,1.32,2456.6,2456.5,0.40714]
[1728850140676,1.32,2456.6,2456.5,2.13554]
[1728850140886,4.0089,2456.7,2456.5,1.7284]
[1728850141183,3.2078,2456.7,2456.6,1.72712]
[1728850141382,3.2078,2456.7,2456.6,2.14722]
[1728850145380,1.32,2456.8,2456.7,0.40711]
[1728850149191,0.8184,2456.9,2456.8,0.40709]
[1728850149685,0.3939,2456.9,2456.8,0.40709]
[1728850150678,0.3939,2456.9,2456.8,1.72709]
[1728850152787,0.80097,2456.9,2456.8,0.40709]
[1728850152991,1.18597,2456.9,2456.8,0.40709]
[1728850155687,0.7789,2456.9,2456.8,0.40709]
[1728850157085,1.18597,2456.9,2456.8,0.40709]
[1728850158291,0.7789,2456.9,2456.8,0.40709]
[1728850158490,0.7789,2456.9,2456.8,1.72709]
[1728850158691,1.18597,2456.9,2456.8,2.14849]
[1728850162089,1.18597,2456.9,2456.8,1.7414]
[1728850162292,1.18597,2456.9,2456.8,2.14849]
[1728850165090,1.18597,2456.9,2456.8,1.7414]
[1728850165394,1.18597,2456.9,2456.8,2.14849]
[1728850167795,1.18597,2456.9,2456.8,0.82849]
[1728850173789,1.18597,2456.9,2456.8,0.4214]
[1728850174004,1.18597,2456.9,2456.8,0.82849]
[1728850178702,0.7789,2456.9,2456.8,0.82849]
[1728850180302,1.18597,2456.9,2456.8,1.33762094]
[1728850180601,1.18597,2456.9,2456.8,2.40269638]
[1728850181296,1.18597,2456.9,2456.8,2.56645348]
[1728850181809,0.7789,2456.9,2456.8,1.89356544]
[1728850181995,0.7789,2456.9,2456.8,2.40269853]
[1728850182195,0.7789,2456.9,2456.8,2.56647341]
[1728850182899,1.18597,2456.9,2456.8,2.56647341]
[1728850183299,1.18597,2456.9,2456.8,2.28666559]
[1728850183505,1.18597,2456.9,2456.8,2.56647341]
[1728850184192,1.18597,2456.9,2456.8,2.69375733]
[1728850185293,1.18597,2456.9,2456.8,4.11251666]
[1728850185498,1.18597,2456.9,2456.8,4.11260515]
[1728850185702,4.39377,2456.9,2456.8,4.11260515]
[1728850186803,4.39377,2456.9,2456.8,4.11262329]
[1728850188102,1.18597,2456.9,2456.8,4.11262329]
[1728850188301,4.39377,2456.9,2456.8,4.11262329]
[1728850189304,4.39377,2456.9,2456.8,3.47650137]
[1728850189513,4.39377,2456.9,2456.8,3.70582724]
[1728850190302,4.39377,2456.9,2456.8,2.64045305]
[1728850190497,4.39377,2456.9,2456.8,3.70584976]
[1728850191007,4.39377,2456.9,2456.8,2.64045305]
[1728850191209,4.39377,2456.9,2456.8,3.04754305]
[1728850192111,4.39377,2456.9,2456.8,4.64611599]
[1728850192806,4.39377,2456.9,2456.8,3.04754305]
[1728850193098,4.39377,2456.9,2456.8,4.64611599]
[1728850193507,4.39377,2456.9,2456.8,4.23902599]
[1728850193703,4.39377,2456.9,2456.8,3.70625906]
[1728850194310,5.71377,2456.9,2456.8,3.70625906]
[1728850194606,5.71377,2456.9,2456.8,2.64045305]
[1728850194812,5.71377,2456.9,2456.8,3.70633577]
[1728850195408,5.71377,2456.9,2456.8,3.19729359]
[1728850195709,5.71377,2456.9,2456.8,3.70644186]
[1728850195910,5.71377,2456.9,2456.8,4.23913208]
[1728850196717,5.71377,2456.9,2456.8,3.60270064]
[1728850196906,5.71377,2456.9,2456.8,3.72998242]
[1728850197107,5.71377,2456.9,2456.8,2.64055135]
[1728850197909,5.71377,2456.9,2456.8,4.23912429]
[1728850199921,5.71377,2456.9,2456.8,4.64621429]
[1728850200121,4.00877,2456.9,2456.8,4.64621429]
[1728850200615,4.00877,2456.9,2456.8,3.97312392]
[1728850201122,4.00877,2456.9,2456.8,4.64625913]
[1728850201305,4.00877,2456.9,2456.8,5.1553932]
[1728850202020,4.00877,2456.9,2456.8,5.96999203]
[1728850202316,4.00877,2456.9,2456.8,4.7483032]
[1728850202522,5.32877,2456.9,2456.8,3.32952573]
[1728850202721,5.32877,2456.9,2456.8,5.56363054]
[1728850203113,5.32877,2456.9,2456.8,4.74903192]
[1728850203420,5.32877,2456.9,2456.8,5.15611483]
[1728850204619,5.32877,2456.9,2456.8,4.74902483]
[1728850205219,5.32877,2456.9,2456.8,5.15611483]
[1728850206118,5.32877,2456.9,2456.8,4.23989076]
[1728850206417,2.12097,2456.9,2456.8,4.23989076]
[1728850206619,6.19137,2456.9,2456.8,1.73906106]
[1728850207116,0.40709,2456.8,2456.7,1.06593236]
[1728850207327,0.79899,2456.8,2456.7,1.35725453]
[1728850207623,4.00679,2456.8,2456.7,1.35725453]
[1728850207921,9.39719,2456.8,2456.7,1.8664421]
[1728850208123,9.39719,2456.8,2456.5,1.06593236]
[1728850208124,0.40712,2456.6,2456.5,1.06593236]
[1728850208318,1.72712,2456.6,2456.5,1.57515907]
[1728850208518,1.72712,2456.6,2456.5,0.50922671]
[1728850208519,5.79752,2456.6,2456.5,0.50922671]
[1728850209120,5.79752,2456.6,2456.5,1.73915651]
[1728850210123,5.79752,2456.6,2456.5,0.50922671]
[1728850210325,0.40714,2456.5,2456.4,2.38593236]
[1728850210511,0.81584,2456.5,2456.4,4.60522078]
[1728850210712,0.81584,2456.5,2456.4,4.60522071]
[1728850210915,0.81584,2456.5,2456.4,3.53928835]
[1728850211121,0.81584,2456.5,2456.4,4.60460961]
[1728850211525,0.81584,2456.5,2456.4,3.18576465]
[1728850212027,0.81584,2456.5,2456.4,4.60438828]
[1728850212218,0.81584,2456.5,2456.4,3.05846208]
[1728850213626,4.02364,2456.5,2456.4,3.05846208]
[1728850213925,4.42164,2456.5,2456.4,3.05846208]
[1728850214519,4.42164,2456.5,2456.4,2.89455008]
[1728850216127,4.42164,2456.5,2456.4,3.30171008]
[1728850216424,4.42164,2456.5,2456.4,3.30170898]
[1728850216926,4.42164,2456.5,2456.4,2.89454898]
[1728850217325,4.42164,2456.5,2456.4,2.38533332]
[1728850218126,4.42164,2456.5,2456.4,2.89454424]
[1728850218427,4.42164,2456.5,2456.4,2.38533332]
[1728850220622,1.21384,2456.5,2456.4,2.38533332]
[1728850221231,1.21384,2456.5,2456.4,1.32]
[1728850221427,1.21384,2456.5,2456.4,2.38533332]
[1728850221735,1.21384,2456.5,2456.4,1.32]
[1728850221922,1.21384,2456.5,2456.4,2.38533332]
[1728850222128,1.21384,2456.5,2456.4,1.32]
[1728850223033,1.21384,2456.5,2456.4,2.38533332]
[1728850223439,1.21384,2456.5,2456.4,1.32]
[1728850223633,0.40716,2456.4,2456.3,1.06533332]
[1728850223834,0.40719,2456.2,2456.1,1.47254332]
[1728850224026,3.2078,2456.2,2456.1,2.14560152]
[1728850224230,3.2078,2456.2,2456.1,1.47254332]
[1728850224536,3.5974,2456.2,2456.1,1.47254332]
[1728850224933,3.5974,2456.2,2456.1,1.98180882]
[1728850225123,3.5974,2456.2,2456.1,1.47254332]
[1728850225429,4.00459,2456.2,2456.1,1.47254332]
[1728850225627,4.00459,2456.2,2456.1,2.79254332]
[1728850225829,4.00459,2456.2,2456.1,1.72721]
[1728850226028,3.5974,2456.2,2456.1,1.72721]
[1728850226533,0.3896,2456.2,2456.1,1.72721]
[1728850232437,0.3896,2456.2,2456.1,1.32]
[1728850232438,0.79679,2456.2,2456.1,1.32]
[1728850232640,1.19109,2456.2,2456.1,1.32]
[1728850233433,0.40721,2456.1,2456.0,0.82382]
[1728850233641,3.2078,2456.1,2456.0,2.14382]
[1728850233939,3.61501,2456.1,2456.0,1.7366]
[1728850235436,0.40724,2455.9,2455.8,1.06533332]
[1728850235737,0.40726,2455.8,2455.7,3.18890332]
[1728850235943,0.81026,2455.8,2455.7,3.18890332]
[1728850236634,0.81026,2455.8,2455.7,2.12357]
[1728850236939,0.81026,2455.8,2455.7,3.18890332]
[1728850237141,0.81026,2455.8,2455.7,2.12357]
[1728850238233,0.403,2455.8,2455.7,2.12357]
[1728850239141,0.81026,2455.8,2455.7,2.12357]
[1728850240236,4.01806,2455.8,2455.7,2.12357]
[1728850240437,4.01806,2455.8,2455.7,0.80357]
[1728850240834,5.33806,2455.8,2455.7,0.3963]
[1728850241148,5.94896,2455.8,2455.4,1.85164332]
[1728850241345,0.40729,2455.6,2455.5,0.4157]
[1728850241647,1.72729,2455.6,2455.5,0.82301]
[1728850242738,2.11488,2455.7,2455.6,0.40729]
[1728850243147,1.72728,2455.7,2455.6,1.72729]
[1728850243340,1.72728,2455.7,2455.6,2.13359]
[1728850244858,1.72728,2455.7,2455.6,0.81359]
[1728850246849,1.32,2455.7,2455.6,0.81359]
[1728850247251,1.32,2455.7,2455.6,2.13359]
[1728850247655,1.72727,2455.7,2455.6,2.13359]
[1728850248657,1.72727,2455.7,2455.6,1.7263]
[1728850249554,1.72727,2455.7,2455.6,2.13359]
[1728850251557,1.72727,2455.7,2455.6,1.7263]
[1728850251947,1.72727,2455.7,2455.6,2.13359]
[1728850252148,1.72727,2455.7,2455.6,1.7263]
[1728850252354,1.72727,2455.7,2455.6,2.13359]
[1728850253354,1.32,2455.7,2455.5,1.7357]
[1728850253555,0.40729,2455.6,2455.5,0.4157]
[1728850253849,0.40729,2455.6,2455.5,0.82301]
[1728850254154,2.11298,2455.7,2455.5,2.14301]
[1728850254447,0.40729,2455.6,2455.5,2.14301]
[1728850256557,0.40729,2455.6,2455.5,1.7357]
[1728850256756,0.40729,2455.6,2455.5,2.14301]
[1728850258752,4.9135,2455.7,2455.5,1.7357]
[1728850258953,3.2078,2455.7,2455.6,1.72729]
[1728850259159,3.2078,2455.7,2455.6,6.21879]
[1728850259563,1.72725,2455.9,2455.7,0.40727]
[1728850259752,1.72725,2455.9,2455.8,0.8217]
[1728850260452,1.72725,2455.9,2455.8,0.4172]
[1728850266155,1.72725,2455.9,2455.6,0.82678]
[1728850266156,1.32,2455.9,2455.6,0.82678]
[1728850266456,2.14476,2455.8,2455.6,1.20958]
[1728850266962,0.4056,2455.7,2455.6,1.20958]
[1728850267463,0.81287,2455.7,2455.6,1.20958]
[1728850269269,0.81287,2455.7,2455.6,0.8023]
[1728850269564,0.81287,2455.7,2455.5,1.47263332]
[1728850269765,1.32,2455.6,2455.5,1.47263332]
[1728850271364,1.72729,2455.6,2455.4,1.06533332]
[1728850271575,4.0118,2455.7,2455.4,1.06533332]
[1728850271576,2.12561,2455.5,2455.4,1.06533332]
[1728850271865,1.7183,2455.5,2455.3,3.08080626]
[1728850272069,4.00592,2455.4,2455.3,1.48223332]
[1728850272367,4.00592,2455.4,2455.3,3.70113052]
[1728850272765,4.00592,2455.4,2455.3,3.5737747]
[1728850273070,4.00592,2455.4,2455.3,2.15553811]
[1728850273368,4.00592,2455.4,2455.3,3.57399204]
[1728850273766,4.00592,2455.4,2455.3,2.15553811]
[1728850273956,4.00592,2455.4,2455.3,2.15555279]
[1728850274161,4.00592,2455.4,2455.3,3.57393883]
[1728850274361,4.00592,2455.4,2455.3,3.57408773]
[1728850274868,4.00592,2455.4,2455.3,3.98142773]
[1728850275062,4.00592,2455.4,2455.3,2.56289279]
[1728850275267,4.00592,2455.4,2455.3,3.9815637]
[1728850275961,4.00592,2455.4,2455.3,4.10892065]
[1728850276161,4.00592,2455.4,2455.3,3.9815637]
[1728850276368,0.3908,2455.4,2455.3,5.96216141]
[1728850276672,0.3908,2455.4,2455.3,5.96213445]
[1728850277562,0.3908,2455.4,2455.3,5.96217527]
[1728850277867,0.3908,2455.4,2455.3,5.45275101]
[1728850278069,0.3908,2455.4,2455.3,5.96215355]
[1728850278266,1.7273,2455.6,2455.3,6.36984389]
[1728850278469,2.1311,2455.6,2455.5,0.40731]
[1728850278969,2.1311,2455.6,2455.5,1.4729428]
[1728850279272,2.1311,2455.6,2455.5,1.98233743]
[1728850279969,2.1311,2455.6,2455.5,2.14633404]
[1728850280170,2.1311,2455.6,2455.5,2.273682]
[1728850281278,2.1311,2455.6,2455.5,3.40224888]
[1728850281571,2.1311,2455.6,2455.5,2.78315764]
[1728850281775,2.1311,2455.6,2455.5,2.27376301]
[1728850282168,2.1311,2455.6,2455.5,3.69368489]
[1728850282972,2.1311,2455.6,2455.5,3.69436382]
[1728850283168,2.1311,2455.6,2455.5,2.62805209]
[1728850284272,2.1311,2455.6,2455.5,4.22662503]
[1728850284480,1.7238,2455.6,2455.5,4.22662503]
[1728850285565,3.2078,2455.7,2455.5,6.3514293]
[1728850285775,3.2078,2455.7,2455.6,4.08920368]
[1728850286180,4.5278,2455.7,2455.6,4.62149048]
[1728850286571,1.32,2455.7,2455.6,4.62149048]
[1728850288178,1.32,2455.7,2455.6,5.43647583]
[1728850288380,1.32,2455.7,2455.6,4.62149048]
[1728850288775,1.32,2455.7,2455.6,4.33007039]
[1728850288971,1.32,2455.7,2455.6,4.62087625]
[1728850290792,1.32,2455.7,2455.6,5.43585658]
[1728850291095,1.32,2455.7,2455.6,5.69760071]
[1728850291303,1.32,2455.7,2455.6,5.43594936]
[1728850291987,1.32,2455.7,2455.6,4.62096903]
[1728850292694,1.32,2455.7,2455.6,4.62096755]
[1728850292886,1.32,2455.7,2455.6,5.43594866]
[1728850293089,1.32,2455.7,2455.6,4.62096755]
[1728850294791,1.32,2455.7,2455.6,5.43593876]
[1728850295295,1.32,2455.7,2455.6,4.62096755]
[1728850295797,1.32,2455.7,2455.6,3.20076744]
[1728850295993,1.32,2455.7,2455.6,4.62098745]
[1728850296393,1.32,2455.7,2455.6,4.11161515]
[1728850296694,1.32,2455.7,2455.6,4.62097386]
[1728850298795,1.32,2455.7,2455.6,5.43594331]
[1728850299098,1.32,2455.7,2455.6,4.62097386]
[1728850300498,1.32,2455.7,2455.6,4.62098434]
[1728850300698,1.32,2455.7,2455.6,4.62094901]
[1728850304302,1.32,2455.7,2455.6,4.62094524]
[1728850305600,1.32,2455.7,2455.6,4.62093058]
[1728850308006,1.32,2455.7,2455.6,4.1115727]
[1728850308206,1.32,2455.7,2455.6,4.62093523]
[1728850310104,1.32,2455.7,2455.6,4.62092702]
[1728850311700,1.32,2455.7,2455.6,4.49358612]
[1728850311902,1.32,2455.7,2455.6,4.62092784]
[1728850312606,1.32,2455.7,2455.6,4.62093472]
[1728850313002,1.72727,2455.7,2455.6,3.81894472]
[1728850313208,1.72727,2455.7,2455.6,1.86667869]
[1728850313402,2.11397,2455.7,2455.6,1.86667869]
[1728850313613,2.11397,2455.7,2455.6,1.73933697]
[1728850314703,2.11397,2455.7,2455.6,0.50936941]
[1728850315014,2.11397,2455.7,2455.6,1.73938753]
[1728850315505,2.11397,2455.7,2455.6,1.57584634]
[1728850315908,2.11397,2455.7,2455.6,0.50936941]
[1728850316510,0.40729,2455.6,2455.5,1.06647693]
[1728850316711,2.14819,2455.6,2455.5,2.77771305]
[1728850316911,2.14819,2455.6,2455.5,3.81923366]
[1728850318314,2.14819,2455.6,2455.5,2.22066072]
[1728850319014,2.14819,2455.6,2455.5,3.81923366]
[1728850319416,2.14819,2455.6,2455.5,3.81924435]
[1728850319716,2.14819,2455.6,2455.5,3.81936094]
[1728850321412,2.14819,2455.6,2455.5,3.69200479]
[1728850321620,2.14819,2455.6,2455.5,3.81935908]
[1728850322621,2.14819,2455.6,2455.5,3.81935902]
[1728850323128,2.14819,2455.6,2455.5,3.81934564]
[1728850323510,5.35599,2455.6,2455.5,3.81934564]
[1728850324220,5.35599,2455.6,2455.5,3.69199255]
[1728850324421,2.14819,2455.6,2455.5,3.81934692]
[1728850324814,5.35599,2455.6,2455.5,2.22077398]
[1728850325314,2.14819,2455.6,2455.5,3.81934692]
[1728850325622,5.35599,2455.6,2455.5,2.22077398]
[1728850325822,2.14819,2455.6,2455.5,2.22077398]
[1728850326018,5.35599,2455.6,2455.5,3.5284451]
[1728850326322,5.35599,2455.6,2455.5,3.81936444]
[1728850326520,5.35599,2455.6,2455.5,3.28766632]
[1728850327217,5.35599,2455.6,2455.5,2.2207915]
[1728850327419,5.35599,2455.6,2455.5,3.28766543]
[1728850327717,2.14819,2455.6,2455.5,3.28766543]
[1728850328024,15.0215,2455.6,2455.4,1.06690485]
[1728850328227,6.18591,2455.5,2455.4,1.06690485]
[1728850328427,0.40732,2455.4,2455.3,1.06690485]
[1728850328724,0.40732,2455.4,2455.3,1.86732259]
[1728850328725,2.14022,2455.4,2455.3,1.86732259]
[1728850328926,2.14022,2455.4,2455.3,3.28802885]
[1728850329116,2.14022,2455.4,2455.3,3.28805409]
[1728850329317,2.14022,2455.4,2455.3,1.73995716]
[1728850329824,5.8057,2455.4,2455.2,1.06690485]
[1728850330022,5.34584,2455.3,2455.2,1.47425485]
[1728850330218,5.34584,2455.3,2455.2,3.28862228]
[1728850330423,5.34584,2455.3,2455.2,1.73995125]
[1728850330931,5.34584,2455.3,2455.2,1.57638227]
[1728850331125,4.9385,2455.3,2455.1,1.06690485]
[1728850331325,2.12415,2455.2,2455.1,1.06690485]
[1728850331527,2.12415,2455.2,2455.1,3.28813756]
[1728850332126,2.12415,2455.2,2455.1,1.73993307]
[1728850332729,2.12415,2455.2,2455.1,1.57640763]
[1728850333417,2.12415,2455.2,2455.1,1.06690485]
[1728850334031,5.33195,2455.2,2455.1,1.57640957]
[1728850334324,2.12415,2455.2,2455.1,1.57640957]
[1728850334527,2.12415,2455.2,2455.0,1.06690485]
[1728850334528,0.40737,2455.1,2455.0,1.06690485]
[1728850334723,1.72737,2455.1,2455.0,0.50951124]
[1728850335124,0.40739,2455.0,2454.9,1.87930485]
[1728850335321,1.72739,2455.0,2454.9,1.87930485]
[1728850335724,1.32,2455.0,2454.9,1.87930485]
[1728850337529,1.32,2455.0,2454.9,0.8124]
[1728850339134,4.5278,2455.0,2454.9,0.8124]
[1728850340533,4.93519,2455.0,2454.9,0.8124]
[1728850341643,4.5278,2455.0,2454.9,0.8124]
[1728850341827,4.5278,2455.0,2454.9,1.2269]
[1728850342433,4.93519,2455.0,2454.9,1.2269]
[1728850342939,4.5278,2455.0,2454.9,1.2269]
[1728850347641,4.93519,2455.0,2454.9,1.2269]
[1728850348144,4.5278,2455.0,2454.9,1.2269]
[1728850354353,1.32,2455.0,2454.9,1.2269]
[1728850354659,4.5278,2455.0,2454.9,1.2269]
[1728850355555,4.93519,2455.0,2454.9,1.2269]
[1728850356656,5.8478,2455.0,2454.7,1.06690485]
[1728850356847,1.32,2454.8,2454.7,0.40742]
[1728850357155,1.72742,2454.8,2454.7,0.40742]
[1728850357349,1.72742,2454.8,2454.6,1.88725485]
[1728850357350,0.40744,2454.7,2454.6,1.88725485]
[1728850357546,4.93524,2454.7,2454.6,0.82035]
[1728850357745,8.6014,2454.7,2454.4,1.06690485]
[1728850357949,1.72748,2454.5,2454.3,1.88729485]
[1728850358248,6.25529,2454.4,2454.3,0.4129]
[1728850358453,0.4075,2454.3,2454.1,0.79982]
[1728850358653,1.32,2454.2,2454.1,1.21092]
[1728850358958,1.7213,2454.2,2454.1,1.21092]
[1728850360350,2.12882,2454.2,2454.1,1.21092]
[1728850360555,1.7213,2454.2,2454.1,1.21092]
[1728850361759,0.4013,2454.2,2454.1,0.81864]
[1728850361958,1.7213,2454.2,2454.1,0.81864]
[1728850362159,2.12882,2454.2,2454.1,0.81864]
[1728850362364,1.7213,2454.2,2454.1,0.81864]
[1728850363061,2.12882,2454.2,2454.1,0.81864]
[1728850363258,2.12882,2454.2,2454.1,0.4111]
[1728850364662,0.40756,2454.0,2453.9,0.40756]
[1728850364865,1.72756,2454.0,2453.9,1.21136]
[1728850366759,1.32,2454.0,2453.9,1.21136]
[1728850367267,1.32,2454.0,2453.5,1.44590485]
[1728850367561,1.24248,2453.9,2453.7,0.4076]
[1728850367863,3.61539,2453.8,2453.6,1.21422]
[1728850368755,1.32,2453.7,2453.6,1.21422]
[1728850368959,1.7276,2453.7,2453.6,1.21422]
[1728850369557,1.6276,2453.7,2453.6,1.21422]
[1728850369760,1.22,2453.7,2453.6,1.21422]
[1728850371568,3.61539,2453.8,2453.6,1.21422]
[1728850371569,3.2078,2453.8,2453.7,0.4076]
[1728850371760,1.32,2453.9,2453.8,0.40759]
[1728850379673,4.5278,2453.9,2453.8,0.40759]
[1728850381571,1.32,2453.9,2453.8,0.40759]
[1728850383873,1.713,2453.9,2453.8,0.40759]
[1728850384972,1.32,2453.9,2453.8,0.40759]
[1728850385181,1.32,2453.9,2453.7,1.32]
[1728850385371,1.32,2453.9,2453.8,0.80189]
[1728850386272,3.2078,2454.0,2453.8,5.7895]
[1728850386474,3.2078,2454.0,2453.9,0.82197]
[1728850386680,3.2078,2454.0,2453.9,1.24187]
[1728850392172,0.406,2454.2,2454.1,0.40754]
[1728850392480,1.726,2454.2,2454.1,0.40754]
[1728850392974,1.726,2454.2,2454.1,0.79194]
[1728850393176,2.13352,2454.2,2454.0,0.40754]
[1728850393482,4.5278,2454.1,2454.0,0.40754]
[1728850393875,4.93534,2454.1,2454.0,0.40754]
[1728850394379,4.5278,2454.1,2454.0,4.48274]
[1728850395082,4.93534,2454.1,2454.0,4.48274]
[1728850395284,4.5278,2454.1,2454.0,4.48274]
[1728850395785,4.93534,2454.1,2454.0,4.48274]
[1728850396274,4.93534,2454.1,2454.0,0.40754]
[1728850398388,4.5278,2454.1,2454.0,0.40754]
[1728850399178,4.93534,2454.1,2454.0,4.48274]
[1728850399379,4.5278,2454.1,2454.0,0.40754]
[1728850400086,1.32,2454.1,2454.0,0.40754]
[1728850400575,1.32,2454.1,2453.9,2.80130485]
[1728850400775,1.32,2454.1,2454.0,1.72755]
[1728850401376,1.32,2454.1,2454.0,3.30412155]
[1728850401573,1.32,2454.1,2454.0,3.30412633]
[1728850402385,1.32,2454.1,2454.0,3.59511717]
[1728850402685,1.32,2454.1,2454.0,5.54833411]
[1728850403981,1.32,2454.1,2454.0,5.96353411]
[1728850404488,1.32,2454.1,2454.0,5.16287179]
[1728850404678,1.32,2454.1,2454.0,5.4539639]
[1728850404881,1.32,2454.1,2454.0,5.96364084]
[1728850405388,1.32,2454.1,2454.0,6.77911185]
[1728850405582,1.32,2454.1,2454.0,5.96364084]
[1728850406289,1.32,2454.1,2454.0,5.54844084]
[1728850406490,1.72754,2454.1,2454.0,5.54844084]
[1728850406984,1.32,2454.1,2454.0,5.54844084]
[1728850407190,1.32,2454.1,2454.0,5.54926593]
[1728850408391,1.32,2454.1,2454.0,3.93817382]
[1728850408592,1.32,2454.1,2454.0,4.22927782]
[1728850411485,0.406,2454.2,2454.0,5.14172782]
[1728850411790,3.61525,2454.7,2454.5,0.40746]
[1728850411987,3.2078,2454.7,2454.5,2.38734014]
[1728850412186,3.2078,2454.7,2454.5,1.47480014]
[1728850412187,1.72745,2454.6,2454.5,1.47480014]
[1728850412395,1.32,2454.6,2454.5,2.14794859]
[1728850412596,1.32,2454.6,2454.5,2.14794479]
[1728850412988,1.32,2454.6,2454.5,2.14794492]
[1728850413297,1.32,2454.6,2454.5,1.47480014]
[1728850413888,1.32,2454.6,2454.5,1.98438713]
[1728850414091,3.2078,2454.7,2454.6,0.40745]
[1728850414694,3.6157,2454.7,2454.6,0.40745]
[1728850415698,3.2078,2454.7,2454.6,5.80105]
[1728850415887,3.2078,2454.7,2454.6,9.49502921]
[1728850416092,3.2078,2454.7,2454.6,5.54881374]
[1728850416293,3.2078,2454.7,2454.6,4.12879644]
[1728850416488,3.2078,2454.7,2454.6,4.88588968]
[1728850417199,3.2078,2454.7,2454.6,4.21293798]
[1728850417391,3.2078,2454.7,2454.6,3.30259365]
[1728850418093,3.2078,2454.7,2454.6,7.37619365]
[1728850418401,3.2078,2454.7,2454.6,2.79305275]
[1728850420502,3.2078,2454.7,2454.6,6.86665275]
[1728850420895,3.2078,2454.7,2454.6,2.79305275]
[1728850421497,3.2078,2454.7,2454.6,1.72745]
[1728850422002,3.2078,2454.7,2454.6,5.80105]
[1728850422391,3.2078,2454.7,2454.6,1.72745]
[1728850423507,3.2078,2454.7,2454.6,5.80105]
[1728850424097,0.3887,2454.8,2454.6,1.32]
[1728850424301,0.3887,2454.8,2454.7,2.13584]
[1728850438809,3.2078,2454.9,2454.7,2.13584]
[1728850439114,0.3861,2455.0,2454.9,0.4074]
[1728850439415,0.3861,2455.0,2454.9,1.7274]
[1728850441409,0.79349,2455.0,2454.9,1.7274]
[1728850441611,0.3861,2455.0,2454.9,1.7274]
[1728850442607,0.79349,2455.0,2454.9,1.7274]
[1728850443808,3.3028,2455.7,2454.9,14.31461021]
[1728850444021,0.4812,2455.9,2455.8,0.40726]
[1728850444217,0.4164,2456.3,2456.1,0.40721]
[1728850444418,0.3862,2456.2,2456.1,0.40721]
[1728850444614,0.4164,2456.3,2456.2,0.40719]
[1728850445805,0.4164,2456.3,2456.2,1.72719]